[Event "*** Titled Tuesday Blitz"]
[Site "Chess.com"]
[Date "2020.05.05"]
[Round "7"]
[White "IriBu"]
[Black "annamaja"]
[Result "1-0"]
[WhiteElo "2449"]
[BlackElo "2300"]
[TimeControl "180+1"]
[EndTime "11:19:35 PDT"]
[Termination "IriBu won by resignation"]

1. e4 {[%clk 0:03:00.9]} 1... c6 {[%clk 0:02:59.6]} 2. d3 {[%clk 0:03:00]} 2...
d5 {[%clk 0:02:59.5]} 3. Nd2 {[%clk 0:03:00.6]} 3... e5 {[%clk 0:02:55.7]} 4.
Ngf3 {[%clk 0:03:00.7]} 4... Nd7 {[%clk 0:02:54.6]} 5. g3 {[%clk 0:02:54.8]}
5... Ngf6 {[%clk 0:02:53.2]} 6. Bg2 {[%clk 0:02:55]} 6... Bd6 {[%clk 0:02:52.2]}
7. O-O {[%clk 0:02:53.3]} 7... O-O {[%clk 0:02:51]} 8. Re1 {[%clk 0:02:53.3]}
8... Re8 {[%clk 0:02:48.8]} 9. c3 {[%clk 0:02:53.6]} 9... Nc5 {[%clk 0:02:41.2]}
10. Qc2 {[%clk 0:02:48.9]} 10... dxe4 {[%clk 0:02:39.8]} 11. dxe4 {[%clk
0:02:45.5]} 11... a5 {[%clk 0:02:34.8]} 12. Nc4 {[%clk 0:02:38.6]} 12... Bc7
{[%clk 0:02:25.6]} 13. Bg5 {[%clk 0:02:37.6]} 13... h6 {[%clk 0:02:20.9]} 14.
Bxf6 {[%clk 0:02:34.2]} 14... Qxf6 {[%clk 0:02:21.8]} 15. a4 {[%clk 0:02:26.8]}
15... Be6 {[%clk 0:02:18.6]} 16. Nfd2 {[%clk 0:02:27]} 16... Red8 {[%clk
0:02:09.5]} 17. Bf1 {[%clk 0:02:20.3]} 17... b5 {[%clk 0:01:24.4]} 18. axb5
{[%clk 0:02:15.3]} 18... cxb5 {[%clk 0:01:25.3]} 19. Ne3 {[%clk 0:02:15.2]}
19... Rxd2 {[%clk 0:01:06.6]} 20. Qxd2 {[%clk 0:02:12.8]} 20... Nb3 {[%clk
0:01:07]} 21. Qc2 {[%clk 0:02:10.5]} 21... Nxa1 {[%clk 0:01:05.6]} 22. Rxa1
{[%clk 0:02:11.4]} 22... Rb8 {[%clk 0:01:04.5]} 23. Nd5 {[%clk 0:02:07.3]} 23...
Bxd5 {[%clk 0:01:00]} 24. exd5 {[%clk 0:02:08.2]} 24... Bb6 {[%clk 0:00:41.9]}
25. Rd1 {[%clk 0:02:05.1]} 25... Bc5 {[%clk 0:00:39.4]} 26. b3 {[%clk
0:01:56.8]} 26... b4 {[%clk 0:00:36]} 27. cxb4 {[%clk 0:01:48.2]} 27... Bxb4
{[%clk 0:00:36.9]} 28. Qc6 {[%clk 0:01:32.3]} 28... Qxc6 {[%clk 0:00:28.4]} 29.
dxc6 {[%clk 0:01:31.8]} 29... Rc8 {[%clk 0:00:24.9]} 30. Bg2 {[%clk 0:01:28.6]}
30... Rc7 {[%clk 0:00:20.4]} 31. Rd8+ {[%clk 0:01:21.6]} 31... Kh7 {[%clk
0:00:20.5]} 32. Re8 {[%clk 0:01:21.5]} 32... f6 {[%clk 0:00:13.8]} 33. h4 {[%clk
0:01:19.4]} 33... Kg6 {[%clk 0:00:13.1]} 34. Bd5 {[%clk 0:01:18.1]} 34... Kf5
{[%clk 0:00:09.5]} 35. Kg2 {[%clk 0:01:14.1]} 35... Kg4 {[%clk 0:00:06.4]} 36.
Re6 {[%clk 0:00:58.8]} 36... Kf5 {[%clk 0:00:06.1]} 37. Kf3 {[%clk 0:00:54.2]}
37... h5 {[%clk 0:00:04.9]} 38. Re8 {[%clk 0:00:52.9]} 38... Kg6 {[%clk
0:00:03.6]} 39. Ke4 {[%clk 0:00:50.4]} 39... Bc3 {[%clk 0:00:02.3]} 40. Kf3
{[%clk 0:00:46.4]} 40... f5 {[%clk 0:00:01.6]} 41. Re6+ {[%clk 0:00:44.8]} 41...
Kh7 {[%clk 0:00:01.7]} 42. Rd6 {[%clk 0:00:39.6]} 42... Bd4 {[%clk 0:00:01.6]}
43. Be6 {[%clk 0:00:34.2]} 43... Bc5 {[%clk 0:00:02.2]} 44. Bxf5+ {[%clk
0:00:33.5]} 44... Kg8 {[%clk 0:00:02.8]} 45. Rd8+ {[%clk 0:00:31.8]} 45... Kf7
{[%clk 0:00:03.5]} 46. Be4 {[%clk 0:00:32.2]} 46... Kf6 {[%clk 0:00:03.8]} 47.
Ke2 {[%clk 0:00:29.5]} 47... Bd4 {[%clk 0:00:04.2]} 48. f3 {[%clk 0:00:29.4]}
48... Ke7 {[%clk 0:00:04.7]} 49. Rg8 {[%clk 0:00:28.6]} 49... Kd6 {[%clk
0:00:05.2]} 50. g4 {[%clk 0:00:27.8]} 50... hxg4 {[%clk 0:00:05.4]} 51. fxg4
{[%clk 0:00:28]} 51... Kc5 {[%clk 0:00:06.3]} 52. h5 {[%clk 0:00:25.4]} 52...
Kb4 {[%clk 0:00:06.7]} 53. Rb8+ {[%clk 0:00:25.2]} 53... Kc3 {[%clk 0:00:06.6]}
54. g5 {[%clk 0:00:25]} 54... Kb2 {[%clk 0:00:04.7]} 55. Rb7 {[%clk 0:00:24.1]}
55... Rxb7 {[%clk 0:00:03.6]} 56. cxb7 {[%clk 0:00:24.4]} 56... Ba7 {[%clk
0:00:04.3]} 57. Bd5 {[%clk 0:00:24.9]} 57... Kc3 {[%clk 0:00:03.7]} 58. h6
{[%clk 0:00:25.3]} 58... gxh6 {[%clk 0:00:03.2]} 59. gxh6 {[%clk 0:00:25.7]}
59... Kd4 {[%clk 0:00:04.1]} 60. h7 {[%clk 0:00:26.1]} 60... Kxd5 {[%clk
0:00:04.7]} 61. h8=Q {[%clk 0:00:26.4]} 61... Kc6 {[%clk 0:00:05.5]} 62. b8=Q
{[%clk 0:00:26.4]} 1-0

[Event "*** Titled Tuesday Blitz"]
[Site "Chess.com"]
[Date "2020.05.05"]
[Round "7"]
[White "ShadowJolteon"]
[Black "petrkostenko"]
[Result "0-1"]
[WhiteElo "2248"]
[BlackElo "2434"]
[TimeControl "180+1"]
[EndTime "11:19:37 PDT"]
[Termination "petrkostenko won by checkmate"]

1. d4 {[%clk 0:03:00.9]} 1... e6 {[%clk 0:02:58.7]} 2. c4 {[%clk 0:02:54.8]}
2... b6 {[%clk 0:02:57.3]} 3. Nf3 {[%clk 0:02:51.5]} 3... Bb7 {[%clk 0:02:56]}
4. g3 {[%clk 0:02:51.8]} 4... Bb4+ {[%clk 0:02:54.1]} 5. Bd2 {[%clk 0:02:50.9]}
5... Bxf3 {[%clk 0:02:54.1]} 6. exf3 {[%clk 0:02:49.6]} 6... Bxd2+ {[%clk
0:02:54.6]} 7. Qxd2 {[%clk 0:02:47.3]} 7... Ne7 {[%clk 0:02:53.4]} 8. Bg2 {[%clk
0:02:47.7]} 8... d5 {[%clk 0:02:48.8]} 9. f4 {[%clk 0:02:48.6]} 9... O-O {[%clk
0:02:48.9]} 10. O-O {[%clk 0:02:48.2]} 10... Qd7 {[%clk 0:02:48.7]} 11. Nc3
{[%clk 0:02:48.3]} 11... Nbc6 {[%clk 0:02:34.4]} 12. f5 {[%clk 0:02:18.2]} 12...
dxc4 {[%clk 0:02:30.8]} 13. f6 {[%clk 0:02:18.2]} 13... gxf6 {[%clk 0:02:20.1]}
14. Ne4 {[%clk 0:02:17.5]} 14... Kg7 {[%clk 0:02:19.4]} 15. Qf4 {[%clk
0:02:00.5]} 15... Nd5 {[%clk 0:02:08.7]} 16. Nxf6 {[%clk 0:01:34.8]} 16... Nxf4
{[%clk 0:01:28.9]} 17. Nxd7 {[%clk 0:01:33.7]} 17... Nxg2 {[%clk 0:01:13.6]} 18.
Nxf8 {[%clk 0:01:31.2]} 18... Rxf8 {[%clk 0:01:11.4]} 19. Rfc1 {[%clk
0:00:38.4]} 19... b5 {[%clk 0:01:09.8]} 20. a4 {[%clk 0:00:37.4]} 20... Nf4
{[%clk 0:01:08.4]} 21. gxf4 {[%clk 0:00:37]} 21... Nxd4 {[%clk 0:01:08.9]} 22.
Rd1 {[%clk 0:00:27.7]} 22... Nb3 {[%clk 0:00:59.6]} 23. Ra3 {[%clk 0:00:25.1]}
23... b4 {[%clk 0:00:59.1]} 24. Ra2 {[%clk 0:00:25.5]} 24... Rc8 {[%clk
0:00:49.6]} 25. Rd7 {[%clk 0:00:23.3]} 25... Kf6 {[%clk 0:00:48.6]} 26. Kg2
{[%clk 0:00:22.2]} 26... a5 {[%clk 0:00:45.8]} 27. Kg3 {[%clk 0:00:22]} 27... h6
{[%clk 0:00:40.3]} 28. Kf3 {[%clk 0:00:19]} 28... c5 {[%clk 0:00:30.1]} 29. Rb7
{[%clk 0:00:13.5]} 29... Nd4+ {[%clk 0:00:29.3]} 30. Ke4 {[%clk 0:00:12.4]}
30... Nc2 {[%clk 0:00:29.2]} 31. b3 {[%clk 0:00:08.6]} 31... cxb3 {[%clk
0:00:29.1]} 32. Rb2 {[%clk 0:00:08.9]} 32... c4 {[%clk 0:00:29.2]} 33. Ra7
{[%clk 0:00:07.6]} 33... Ne1 {[%clk 0:00:29.2]} 34. Rb1 {[%clk 0:00:04.5]} 34...
Nd3 {[%clk 0:00:28.3]} 35. Rxa5 {[%clk 0:00:02.6]} 35... Nxf2+ {[%clk
0:00:24.9]} 36. Ke3 {[%clk 0:00:02.5]} 36... Ng4+ {[%clk 0:00:24.3]} 37. Kf3
{[%clk 0:00:02.4]} 37... Rg8 {[%clk 0:00:18.7]} 38. h3 {[%clk 0:00:02.2]} 38...
Nh2+ {[%clk 0:00:18.5]} 39. Ke4 {[%clk 0:00:02.6]} 39... Rg2 {[%clk 0:00:17.5]}
40. Rb5 {[%clk 0:00:03]} 40... c3 {[%clk 0:00:14.9]} 41. Kd3 {[%clk 0:00:01.6]}
41... Rd2+ {[%clk 0:00:14.1]} 42. Ke3 {[%clk 0:00:01.6]} 42... b2 {[%clk
0:00:12.5]} 43. Rg1 {[%clk 0:00:02]} 43... c2 {[%clk 0:00:10.7]} 44. Rxb4 {[%clk
0:00:02.9]} 44... c1=Q {[%clk 0:00:09.1]} 45. Rxc1 {[%clk 0:00:02.3]} 45...
bxc1=Q {[%clk 0:00:07.9]} 46. a5 {[%clk 0:00:03.2]} 46... Rd5+ {[%clk
0:00:07.4]} 47. Ke4 {[%clk 0:00:04.1]} 47... Qc2+ {[%clk 0:00:07.2]} 48. Ke3
{[%clk 0:00:03.1]} 48... Qd2+ {[%clk 0:00:06.5]} 49. Ke4 {[%clk 0:00:02.4]}
49... Qd3# {[%clk 0:00:06.6]} 0-1

[Event "*** Titled Tuesday Blitz"]
[Site "Chess.com"]
[Date "2020.05.05"]
[Round "7"]
[White "mshuaau0"]
[Black "agrigo3"]
[Result "1-0"]
[WhiteElo "2133"]
[BlackElo "2308"]
[TimeControl "180+1"]
[EndTime "11:19:39 PDT"]
[Termination "mshuaau0 won on time"]

1. e4 {[%clk 0:03:00.9]} 1... d6 {[%clk 0:02:58.1]} 2. d4 {[%clk 0:03:00.6]}
2... Nf6 {[%clk 0:02:57.9]} 3. Bd3 {[%clk 0:03:00.6]} 3... e5 {[%clk 0:02:56.9]}
4. c3 {[%clk 0:02:58]} 4... d5 {[%clk 0:02:57]} 5. dxe5 {[%clk 0:02:57.3]} 5...
Nxe4 {[%clk 0:02:56.7]} 6. Nd2 {[%clk 0:02:53.3]} 6... Nc5 {[%clk 0:02:53.6]} 7.
Bc2 {[%clk 0:02:52.6]} 7... Nc6 {[%clk 0:02:51.5]} 8. Ndf3 {[%clk 0:02:48.7]}
8... Bg4 {[%clk 0:02:48.3]} 9. h3 {[%clk 0:02:45.4]} 9... Bh5 {[%clk 0:02:47.9]}
10. g4 {[%clk 0:02:43.1]} 10... Bg6 {[%clk 0:02:47.4]} 11. Bf4 {[%clk
0:02:39.9]} 11... Ne6 {[%clk 0:02:36.6]} 12. Bg3 {[%clk 0:02:35.9]} 12... Bxc2
{[%clk 0:02:32.8]} 13. Qxc2 {[%clk 0:02:35.4]} 13... Qd7 {[%clk 0:02:32.8]} 14.
O-O-O {[%clk 0:02:32]} 14... O-O-O {[%clk 0:02:32.7]} 15. Nd4 {[%clk 0:02:23.6]}
15... Ncxd4 {[%clk 0:02:05.5]} 16. cxd4 {[%clk 0:02:21.9]} 16... Kb8 {[%clk
0:02:05.5]} 17. f4 {[%clk 0:02:17]} 17... h5 {[%clk 0:01:48.9]} 18. Ne2 {[%clk
0:02:06.4]} 18... g6 {[%clk 0:01:40.8]} 19. Kb1 {[%clk 0:01:59.9]} 19... Rc8
{[%clk 0:01:38.7]} 20. f5 {[%clk 0:01:58.3]} 20... Ng5 {[%clk 0:01:37.6]} 21.
Nc3 {[%clk 0:01:46.1]} 21... gxf5 {[%clk 0:01:07]} 22. gxf5 {[%clk 0:01:44.1]}
22... Bb4 {[%clk 0:01:06.8]} 23. Bf4 {[%clk 0:01:25.5]} 23... Bxc3 {[%clk
0:01:05.6]} 24. Bxg5 {[%clk 0:01:24.7]} 24... Bb4 {[%clk 0:01:05.5]} 25. a3
{[%clk 0:01:23.8]} 25... Ba5 {[%clk 0:00:58.4]} 26. b4 {[%clk 0:01:07]} 26...
Bb6 {[%clk 0:00:58.2]} 27. h4 {[%clk 0:00:58.4]} 27... a5 {[%clk 0:00:57.5]} 28.
Rhe1 {[%clk 0:00:48]} 28... Rhg8 {[%clk 0:00:38.5]} 29. e6 {[%clk 0:00:46.6]}
29... fxe6 {[%clk 0:00:37.5]} 30. fxe6 {[%clk 0:00:46.3]} 30... Qb5 {[%clk
0:00:35.7]} 31. Qb3 {[%clk 0:00:34.3]} 31... axb4 {[%clk 0:00:19.6]} 32. axb4
{[%clk 0:00:33.9]} 32... Rcf8 {[%clk 0:00:20]} 33. Re5 {[%clk 0:00:29.9]} 33...
c6 {[%clk 0:00:18.2]} 34. e7 {[%clk 0:00:28.6]} 34... Re8 {[%clk 0:00:17.2]} 35.
Kb2 {[%clk 0:00:18]} 35... Bc7 {[%clk 0:00:16.9]} 36. Re6 {[%clk 0:00:17.7]}
36... Bb6 {[%clk 0:00:16.8]} 37. Ka3 {[%clk 0:00:15.8]} 37... Bc7 {[%clk
0:00:16.3]} 38. Qa4 {[%clk 0:00:16]} 38... Qxa4+ {[%clk 0:00:14.4]} 39. Kxa4
{[%clk 0:00:16.3]} 39... Rg7 {[%clk 0:00:14.9]} 40. Rde1 {[%clk 0:00:15.8]}
40... Kc8 {[%clk 0:00:15]} 41. Rf1 {[%clk 0:00:15.9]} 41... Kd7 {[%clk
0:00:15.1]} 42. Re2 {[%clk 0:00:16.5]} 42... Bd6 {[%clk 0:00:14]} 43. Rfe1
{[%clk 0:00:16.6]} 43... Bxe7 {[%clk 0:00:13.4]} 44. Re5 {[%clk 0:00:16.7]}
44... Rf7 {[%clk 0:00:12.8]} 45. R1e2 {[%clk 0:00:16.8]} 45... Rg7 {[%clk
0:00:12.2]} 46. b5 {[%clk 0:00:17.2]} 46... Rf7 {[%clk 0:00:11.5]} 47. b6 {[%clk
0:00:16.8]} 47... Rg7 {[%clk 0:00:11]} 48. Kb3 {[%clk 0:00:17.2]} 48... Rf7
{[%clk 0:00:09.6]} 49. Kc3 {[%clk 0:00:17.7]} 49... Rf3+ {[%clk 0:00:07.2]} 50.
Kd2 {[%clk 0:00:18.2]} 50... Bxg5+ {[%clk 0:00:06.1]} 51. hxg5 {[%clk
0:00:17.4]} 51... Rxe5 {[%clk 0:00:05.6]} 52. Rxe5 {[%clk 0:00:18.3]} 52... h4
{[%clk 0:00:05.5]} 53. g6 {[%clk 0:00:18.6]} 53... h3 {[%clk 0:00:04.4]} 54. Rg5
{[%clk 0:00:19]} 54... h2 {[%clk 0:00:02]} 55. Rh5 {[%clk 0:00:19.4]} 55... Rg3
{[%clk 0:00:01.1]} 56. Rxh2 {[%clk 0:00:19]} 1-0

[Event "*** Titled Tuesday Blitz"]
[Site "Chess.com"]
[Date "2020.05.05"]
[Round "7"]
[White "RaunakSadhwani2005"]
[Black "theblitzchamp"]
[Result "1-0"]
[WhiteElo "2870"]
[BlackElo "2683"]
[TimeControl "180+1"]
[EndTime "11:19:41 PDT"]
[Termination "RaunakSadhwani2005 won by checkmate"]

1. e4 {[%clk 0:03:00.9]} 1... e5 {[%clk 0:02:58.5]} 2. Nc3 {[%clk 0:02:58.5]}
2... Nf6 {[%clk 0:02:56.4]} 3. Bc4 {[%clk 0:02:58.8]} 3... Nc6 {[%clk
0:02:55.6]} 4. d3 {[%clk 0:02:57.4]} 4... Bc5 {[%clk 0:02:52.2]} 5. Nf3 {[%clk
0:02:55.5]} 5... d6 {[%clk 0:02:48.1]} 6. h3 {[%clk 0:02:52.9]} 6... Be6 {[%clk
0:02:47.5]} 7. O-O {[%clk 0:02:41.7]} 7... Bxc4 {[%clk 0:02:44.4]} 8. dxc4
{[%clk 0:02:42]} 8... O-O {[%clk 0:02:44.5]} 9. Bg5 {[%clk 0:02:41.6]} 9... h6
{[%clk 0:02:41]} 10. Bh4 {[%clk 0:02:41.1]} 10... Nd4 {[%clk 0:02:23.4]} 11. Qd3
{[%clk 0:02:09.3]} 11... c6 {[%clk 0:02:18.7]} 12. Rad1 {[%clk 0:02:07.1]} 12...
Qe7 {[%clk 0:02:14.3]} 13. Na4 {[%clk 0:01:51.3]} 13... Rad8 {[%clk 0:02:06.1]}
14. c3 {[%clk 0:01:45.7]} 14... Ne6 {[%clk 0:02:02.9]} 15. Nxc5 {[%clk
0:01:37.6]} 15... Nxc5 {[%clk 0:02:01.7]} 16. Qe3 {[%clk 0:01:38]} 16... Qe6
{[%clk 0:01:58.3]} 17. Bxf6 {[%clk 0:01:35.5]} 17... Qxf6 {[%clk 0:01:57.7]} 18.
b4 {[%clk 0:01:23.9]} 18... Ne6 {[%clk 0:01:57.2]} 19. Qxa7 {[%clk 0:01:21.8]}
19... Rd7 {[%clk 0:01:56.9]} 20. Qe3 {[%clk 0:01:13.8]} 20... Nf4 {[%clk
0:01:56.2]} 21. Kh2 {[%clk 0:01:12.5]} 21... Ra8 {[%clk 0:01:55]} 22. Rd2 {[%clk
0:01:12]} 22... Ra3 {[%clk 0:01:54.1]} 23. Rfd1 {[%clk 0:01:09.2]} 23... Kh7
{[%clk 0:00:55.7]} 24. g3 {[%clk 0:00:44.7]} 24... Ne6 {[%clk 0:00:55]} 25. c5
{[%clk 0:00:39.7]} 25... d5 {[%clk 0:00:39.1]} 26. exd5 {[%clk 0:00:33.6]} 26...
cxd5 {[%clk 0:00:38.5]} 27. Rxd5 {[%clk 0:00:25.9]} 27... Rxd5 {[%clk
0:00:38.7]} 28. Rxd5 {[%clk 0:00:25.5]} 28... Rxa2 {[%clk 0:00:38.5]} 29. Rxe5
{[%clk 0:00:20.3]} 29... g6 {[%clk 0:00:37.4]} 30. Kg2 {[%clk 0:00:20]} 30...
Rc2 {[%clk 0:00:36.7]} 31. h4 {[%clk 0:00:19.6]} 31... Ng7 {[%clk 0:00:36.1]}
32. Qd3 {[%clk 0:00:11.1]} 32... Ra2 {[%clk 0:00:31.4]} 33. h5 {[%clk
0:00:11.1]} 33... Qc6 {[%clk 0:00:16.2]} 34. Re7 {[%clk 0:00:08.5]} 34... Qf6
{[%clk 0:00:14]} 35. hxg6+ {[%clk 0:00:06.4]} 35... fxg6 {[%clk 0:00:14]} 36.
Rxb7 {[%clk 0:00:06.9]} 36... Ra8 {[%clk 0:00:13.4]} 37. Rb6 {[%clk 0:00:07.1]}
37... Qf7 {[%clk 0:00:12.9]} 38. Ne5 {[%clk 0:00:07.2]} 38... Qf5 {[%clk
0:00:10.7]} 39. Qxf5 {[%clk 0:00:07.2]} 39... gxf5 {[%clk 0:00:11.5]} 40. Rb7
{[%clk 0:00:07.2]} 40... Kg8 {[%clk 0:00:11]} 41. c6 {[%clk 0:00:07.6]} 41...
Ne6 {[%clk 0:00:11.4]} 42. b5 {[%clk 0:00:07.5]} 42... Nc5 {[%clk 0:00:11]} 43.
Re7 {[%clk 0:00:07]} 43... Kf8 {[%clk 0:00:10.7]} 44. Rh7 {[%clk 0:00:06.4]}
44... Ra2 {[%clk 0:00:10.1]} 45. Nd7+ {[%clk 0:00:05.3]} 45... Kg8 {[%clk
0:00:09.1]} 46. Nxc5 {[%clk 0:00:04.6]} 46... Kxh7 {[%clk 0:00:08.7]} 47. c7
{[%clk 0:00:05.2]} 47... Ra8 {[%clk 0:00:08.9]} 48. b6 {[%clk 0:00:05.7]} 48...
Rc8 {[%clk 0:00:08.9]} 49. Ne6 {[%clk 0:00:05.8]} 49... Kg6 {[%clk 0:00:08.4]}
50. b7 {[%clk 0:00:06]} 50... Rxc7 {[%clk 0:00:08.3]} 51. Nxc7 {[%clk
0:00:06.9]} 51... f4 {[%clk 0:00:08.2]} 52. b8=Q {[%clk 0:00:07.1]} 52... Kh5
{[%clk 0:00:09.1]} 53. gxf4 {[%clk 0:00:07.4]} 53... Kh4 {[%clk 0:00:08.9]} 54.
Nd5 {[%clk 0:00:07.7]} 54... h5 {[%clk 0:00:09.8]} 55. Qd8+ {[%clk 0:00:07.8]}
55... Kg4 {[%clk 0:00:10.3]} 56. Qg5# {[%clk 0:00:08.2]} 1-0

[Event "*** Titled Tuesday Blitz"]
[Site "Chess.com"]
[Date "2020.05.05"]
[Round "7"]
[White "Kimster98"]
[Black "afgano29"]
[Result "0-1"]
[WhiteElo "2522"]
[BlackElo "2695"]
[TimeControl "180+1"]
[EndTime "11:19:41 PDT"]
[Termination "afgano29 won on time"]

1. d4 {[%clk 0:03:00.9]} 1... Nf6 {[%clk 0:02:59.9]} 2. Nf3 {[%clk 0:03:01.8]}
2... g6 {[%clk 0:03:00]} 3. c4 {[%clk 0:03:00.9]} 3... Bg7 {[%clk 0:03:00]} 4.
g3 {[%clk 0:03:01.8]} 4... O-O {[%clk 0:02:59.9]} 5. Bg2 {[%clk 0:03:02.7]} 5...
d5 {[%clk 0:02:59.7]} 6. cxd5 {[%clk 0:03:02.4]} 6... Nxd5 {[%clk 0:03:00.6]} 7.
O-O {[%clk 0:03:03.3]} 7... Nb6 {[%clk 0:03:00.8]} 8. Nc3 {[%clk 0:03:02.4]}
8... Nc6 {[%clk 0:03:01.2]} 9. e3 {[%clk 0:03:03]} 9... Re8 {[%clk 0:03:01.1]}
10. Nh4 {[%clk 0:03:01.9]} 10... e5 {[%clk 0:02:59.9]} 11. d5 {[%clk 0:03:00.4]}
11... Ne7 {[%clk 0:03:00.1]} 12. e4 {[%clk 0:02:54.3]} 12... Bd7 {[%clk
0:03:00.2]} 13. b3 {[%clk 0:02:44.4]} 13... c6 {[%clk 0:03:00.2]} 14. d6 {[%clk
0:02:41]} 14... Nec8 {[%clk 0:02:58.2]} 15. Ba3 {[%clk 0:02:41]} 15... Bf8
{[%clk 0:02:54.1]} 16. Qd3 {[%clk 0:02:40.2]} 16... Qf6 {[%clk 0:02:51.5]} 17.
Rad1 {[%clk 0:02:37.7]} 17... Rd8 {[%clk 0:02:49.8]} 18. f4 {[%clk 0:02:32.2]}
18... Bg4 {[%clk 0:02:46.8]} 19. Bf3 {[%clk 0:02:18.3]} 19... Bh3 {[%clk
0:02:37.8]} 20. Bg2 {[%clk 0:02:07.2]} 20... Bxg2 {[%clk 0:02:33.9]} 21. Kxg2
{[%clk 0:02:08.1]} 21... Nxd6 {[%clk 0:02:23.1]} 22. fxe5 {[%clk 0:02:03.6]}
22... Qxe5 {[%clk 0:02:24]} 23. Qf3 {[%clk 0:02:03.7]} 23... Qe6 {[%clk
0:02:02.6]} 24. e5 {[%clk 0:01:53.4]} 24... Nb5 {[%clk 0:01:49.6]} 25. Bxf8
{[%clk 0:01:31.4]} 25... Rxf8 {[%clk 0:01:49]} 26. Ne4 {[%clk 0:01:31.5]} 26...
Nd5 {[%clk 0:01:46.1]} 27. Rxd5 {[%clk 0:01:11.2]} 27... cxd5 {[%clk 0:01:44.2]}
28. Nf6+ {[%clk 0:01:11.8]} 28... Kg7 {[%clk 0:01:40.6]} 29. Qf4 {[%clk
0:01:10.9]} 29... h6 {[%clk 0:01:32.2]} 30. g4 {[%clk 0:01:06.6]} 30... d4
{[%clk 0:01:28.1]} 31. Nf5+ {[%clk 0:01:03]} 31... gxf5 {[%clk 0:01:20.4]} 32.
gxf5 {[%clk 0:01:03.9]} 32... Qc6+ {[%clk 0:01:20.2]} 33. Kh3 {[%clk 0:01:01.1]}
33... Rh8 {[%clk 0:01:16.7]} 34. Rg1+ {[%clk 0:00:51.1]} 34... Kf8 {[%clk
0:01:16.8]} 35. Qg4 {[%clk 0:00:51.5]} 35... d3 {[%clk 0:01:03.4]} 36. e6 {[%clk
0:00:40.6]} 36... Ke7 {[%clk 0:00:53.8]} 37. Ne4 {[%clk 0:00:19.4]} 37... Rag8
{[%clk 0:00:30.1]} 38. Qh4+ {[%clk 0:00:19.3]} 38... Ke8 {[%clk 0:00:03.8]} 39.
Nf6+ {[%clk 0:00:19]} 39... Kf8 {[%clk 0:00:03.9]} 40. Nh7+ {[%clk 0:00:09.8]}
40... Ke8 {[%clk 0:00:03.8]} 41. Nf6+ {[%clk 0:00:09.2]} 41... Kf8 {[%clk
0:00:03.9]} 42. Rxg8+ {[%clk 0:00:08.1]} 42... Rxg8 {[%clk 0:00:03.8]} 43. e7+
{[%clk 0:00:05.1]} 43... Kxe7 {[%clk 0:00:04.1]} 44. Nxg8+ {[%clk 0:00:05.6]}
44... Kd6 {[%clk 0:00:04.5]} 45. Qe7+ {[%clk 0:00:05.9]} 45... Kd5 {[%clk
0:00:04.8]} 46. Qe3 {[%clk 0:00:03.1]} 46... Qc3 {[%clk 0:00:03]} 47. Ne7+
{[%clk 0:00:03.2]} 47... Kd6 {[%clk 0:00:02.8]} 0-1

[Event "*** Titled Tuesday Blitz"]
[Site "Chess.com"]
[Date "2020.05.05"]
[Round "7"]
[White "AnnaChessLook"]
[Black "FROGGY64"]
[Result "1/2-1/2"]
[WhiteElo "2257"]
[BlackElo "2431"]
[TimeControl "180+1"]
[EndTime "11:19:43 PDT"]
[Termination "Game drawn by agreement"]

1. d4 {[%clk 0:03:00.9]} 1... e6 {[%clk 0:02:57.4]} 2. c4 {[%clk 0:02:57.6]}
2... b6 {[%clk 0:02:57.5]} 3. e4 {[%clk 0:02:54.8]} 3... d5 {[%clk 0:02:56.9]}
4. Nc3 {[%clk 0:02:44.6]} 4... dxe4 {[%clk 0:02:38.8]} 5. Nxe4 {[%clk
0:02:36.7]} 5... Bb7 {[%clk 0:02:38.7]} 6. Nc3 {[%clk 0:02:36.5]} 6... Nd7
{[%clk 0:02:37.7]} 7. Nf3 {[%clk 0:02:36.8]} 7... Bb4 {[%clk 0:02:37.6]} 8. Be3
{[%clk 0:02:36.6]} 8... Bxc3+ {[%clk 0:02:35.8]} 9. bxc3 {[%clk 0:02:36.5]} 9...
Ngf6 {[%clk 0:02:36.5]} 10. Bd3 {[%clk 0:02:36.5]} 10... O-O {[%clk 0:02:36.1]}
11. O-O {[%clk 0:02:36.5]} 11... c5 {[%clk 0:02:36.2]} 12. Nd2 {[%clk
0:02:10.1]} 12... Qc7 {[%clk 0:02:30.7]} 13. f4 {[%clk 0:01:55.2]} 13... Rad8
{[%clk 0:02:23.5]} 14. Qe2 {[%clk 0:01:51.9]} 14... Rfe8 {[%clk 0:02:15.1]} 15.
Rae1 {[%clk 0:01:42.8]} 15... Nf8 {[%clk 0:02:14.9]} 16. Qf2 {[%clk 0:01:40.7]}
16... Qc6 {[%clk 0:02:00.9]} 17. Qg3 {[%clk 0:01:36.7]} 17... Ng6 {[%clk
0:01:53.1]} 18. Nf3 {[%clk 0:00:48.3]} 18... Ne4 {[%clk 0:01:29.5]} 19. Qh3
{[%clk 0:00:26]} 19... h6 {[%clk 0:01:15.4]} 20. Ne5 {[%clk 0:00:21.4]} 20...
Nxe5 {[%clk 0:01:12.4]} 21. fxe5 {[%clk 0:00:21.7]} 21... cxd4 {[%clk
0:01:06.2]} 22. cxd4 {[%clk 0:00:20.8]} 22... f5 {[%clk 0:00:51.3]} 23. exf6
{[%clk 0:00:20]} 23... Nxf6 {[%clk 0:00:50.9]} 24. Bxh6 {[%clk 0:00:19.1]} 24...
Rxd4 {[%clk 0:00:34.9]} 25. Bxg7 {[%clk 0:00:18.7]} 25... Kxg7 {[%clk
0:00:33.6]} 26. Rxf6 {[%clk 0:00:18.5]} 26... Qxg2+ {[%clk 0:00:31.1]} 27. Qxg2+
{[%clk 0:00:17.6]} 27... Bxg2 {[%clk 0:00:30.9]} 28. Rfxe6 {[%clk 0:00:17]}
28... Rxe6 {[%clk 0:00:24.1]} 29. Rxe6 {[%clk 0:00:17.9]} 29... Rxd3 {[%clk
0:00:24.3]} 30. Kxg2 {[%clk 0:00:18.1]} 30... Rd2+ {[%clk 0:00:24.7]} 31. Kg3
{[%clk 0:00:18.2]} 31... Rxa2 {[%clk 0:00:24.9]} 32. h4 {[%clk 0:00:17]} 32...
Rc2 {[%clk 0:00:20.4]} 33. Re7+ {[%clk 0:00:16.7]} 33... Kg6 {[%clk 0:00:19.9]}
34. Rxa7 {[%clk 0:00:17.2]} 34... Rc3+ {[%clk 0:00:20.2]} 35. Kg4 {[%clk
0:00:16.7]} 35... Rxc4+ {[%clk 0:00:20.5]} 36. Kg3 {[%clk 0:00:17.6]} 36... b5
{[%clk 0:00:20.2]} 37. Rb7 {[%clk 0:00:17.5]} 37... b4 {[%clk 0:00:20.3]} 38.
Rb6+ {[%clk 0:00:17.6]} 38... Kh5 {[%clk 0:00:20]} 39. Rb5+ {[%clk 0:00:17.8]}
39... Kg6 {[%clk 0:00:20.3]} 40. Kh3 {[%clk 0:00:17.3]} 40... Rc3+ {[%clk
0:00:19.8]} 41. Kg4 {[%clk 0:00:16.8]} 41... b3 {[%clk 0:00:20.2]} 42. Rb6+
{[%clk 0:00:16.9]} 42... Kg7 {[%clk 0:00:20.4]} 43. Kg5 {[%clk 0:00:15.9]} 43...
Rc5+ {[%clk 0:00:19.8]} 44. Kg4 {[%clk 0:00:15.9]} 44... Rc4+ {[%clk 0:00:20]}
45. Kg3 {[%clk 0:00:15.2]} 45... Rc3+ {[%clk 0:00:20.1]} 46. Kf4 {[%clk
0:00:15.8]} 46... Rc4+ {[%clk 0:00:19.8]} 47. Kg5 {[%clk 0:00:16]} 47... Rc5+
{[%clk 0:00:19.8]} 48. Kg4 {[%clk 0:00:16.5]} 48... Rc4+ {[%clk 0:00:19.6]} 49.
Kf5 {[%clk 0:00:16.9]} 49... Rxh4 {[%clk 0:00:18.7]} 50. Rb7+ {[%clk 0:00:17.4]}
50... Kh6 {[%clk 0:00:17]} 51. Rxb3 {[%clk 0:00:18.3]} 51... Rh1 {[%clk
0:00:15.2]} 52. Rf3 {[%clk 0:00:16.9]} 52... Kh5 {[%clk 0:00:14.9]} 53. Kf6
{[%clk 0:00:15.4]} 53... Kh4 {[%clk 0:00:14.3]} 54. Kf5 {[%clk 0:00:14.8]} 54...
Ra1 {[%clk 0:00:14.2]} 55. Rd3 {[%clk 0:00:14.4]} 55... Ra5+ {[%clk 0:00:13.5]}
56. Kf6 {[%clk 0:00:15.3]} 56... Ra6+ {[%clk 0:00:13.3]} 1/2-1/2